[Event "33rd Croatian Junior League 2024"]
[Site "Novalja"]
[Date "2024.04.02"]
[Round "2.3"]
[White "Marfat, Ivan"]
[Black "Mazuran, Gabrijel"]
[Result "1/2-1/2"]
[ECO "B45"]
[WhiteElo "1903"]
[BlackElo "2054"]
[Annotator "NA RC"]
[PlyCount "86"]
[EventDate "2024.03.28"]
[EventType "team-tourn"]
[EventCountry "CRO"]
[SourceTitle "playchess.com"]
[Source "ChessBase"]
[SourceQuality "1"]
[TimeControl "5400+30"]

1. e4 {[%emt 0:00:03]} c5 {[%emt 0:00:06]} 2. Nf3 {[%emt 0:00:04]} e6 {[%emt 0:00:06]} 3. d4 {[%emt 0:00:10]} cxd4 {[%emt 0:00:06]} 4. Nxd4 {[%emt 0:00:03]} Nc6 {[%emt 0:00:09]} 5. Nc3 {[%emt 0:00:04]} Nf6 {[%emt 0:00:07]} 6. Ndb5 {[%emt 0:00:05]} Bb4 {[%emt 0:00:15]} 7. Bf4 {[%emt 0:00:03]} Nxe4 {[%emt 0:00:26]} 8. Qf3 {[%emt 0:00:04]} d5 {[%emt 0:01:30]} 9. Nc7+ {[%emt 0:00:04]} Kf8 {[%emt 0:00:06]} 10. Nxa8 {[%emt 0:00:04] B45: Sicilian Four Knights.} e5 {[%emt 0:04:15]} 11. Bd2 {[%emt 0:00:10]} Nd4 {[%emt 0:00:24]} 12. Qd3 {[%emt 0:00:04]} Nc5 {[%emt 0:39:37]} 13. Qg3 {[%emt 0:00:06]} Nxc2+ {[%emt 0:14:56]} 14. Kd1 {[%emt 0:00:16]} Nxa1 {[%emt 0:03:43]} 15. Qxe5 {[%emt 0:00:07]} Ne4 {[%emt 0:17:51]} 16. Be1 {[%emt 0:00:12]} Nxc3+ {[%emt 0:04:39]} 17. Bxc3 {[%emt 0:00:39]} Bxc3 {[%emt 0:01:08]} 18. bxc3 {[%emt 0:01:56]} f6 {[%emt 0:09:06]} 19. Qc7 {[%emt 0:01:39]} Qxc7 {[%emt 0:00:50]} 20. Nxc7 {[%emt 0:00:05]} Bf5 {[%emt 0:00:34]} 21. Nxd5 {[%emt 0:01:48]} Nc2 {[%emt 0:00:25]} 22. Be2 {[%emt 0:02:15]} Na3 {[%emt 0:00:36]} 23. Ne3 {[%emt 0:00:34]} Be6 {[%emt 0:00:32]} 24. Kc1 {[%emt 0:00:22]} b5 {[%emt 0:00:25]} 25. Kb2 {[%emt 0:00:48]} Nc4+ {[%emt 0:00:12]} 26. Bxc4 {[%emt 0:01:11]} bxc4 {[%emt 0:00:29]} 27. Rd1 {[%emt 0:00:06]} Kf7 {[%emt 0:00:34]} 28. Rd4 {[%emt 0:00:13]} Rc8 {[%emt 0:00:46]} 29. h4 {[%emt 0:07:04]} g5 {[%emt 0:00:24]} 30. hxg5 {[%emt 0:00:17]} fxg5 {[%emt 0:00:01]} 31. f4 {[%emt 0:00:12]} gxf4 {[%emt 0:00:48]} 32. Rxf4+ {[%emt 0:00:01]} Kg7 {[%emt 0:00:50]} 33. Re4 {[%emt 0:01:04]} Kf6 $11 {[%emt 0:00:29]} 34. Rh4 {[%emt 0:16:39]} Rc7 {[%emt 0:00:31]} 35. Ka3 {[%emt 0:00:30]} Ke5 {[%emt 0:00:28]} 36. Kb4 {[%emt 0:01:14]} Rb7+ {[%emt 0:00:33]} 37. Kc5 {[%emt 0:01:12]} Rc7+ {[%emt 0:00:01]} 38. Kb4 {[%emt 0:05:45]} Rb7+ {[%emt 0:00:16]} 39. Ka3 {[%emt 0:01:49]} Rc7 {[%emt 0:00:07]} 40. Kb2 {[%emt 0:02:15]} Rb7+ {[%emt 0:00:41]} 41. Kc1 {[%emt 0:00:14]} Rg7 {[%emt 0:01:04]} 42. Rd4 {[%emt 0:02:43]} h5 {[%emt 0:00:47]} 43. Nxc4+ {[%emt 0:18:35]} Bxc4 {[%emt 0:00:11]} 1/2-1/2

[Event "33rd Croatian Junior League 2024"]
[Site "Novalja"]
[Date "2024.04.02"]
[Round "2.4"]
[White "Simunkovic, Bartol"]
[Black "Mesic, Josip"]
[Result "1-0"]
[ECO "C13"]
[WhiteElo "1885"]
[BlackElo "1745"]
[Annotator "NA RC"]
[PlyCount "89"]
[EventDate "2024.03.28"]
[EventType "team-tourn"]
[EventCountry "CRO"]
[SourceTitle "playchess.com"]
[Source "ChessBase"]
[SourceQuality "1"]
[TimeControl "5400+30"]

1. e4 {[%emt 0:00:06]} e6 {[%emt 0:00:07]} 2. d4 {[%emt 0:00:04]} d5 {[%emt 0:00:04]} 3. Nc3 {[%emt 0:00:04]} Nf6 {[%emt 0:00:03]} 4. Bg5 {[%emt 0:00:07]} dxe4 {[%emt 0:00:04]} 5. Nxe4 {[%emt 0:00:07]} Be7 {[%emt 0:00:02]} 6. Bxf6 {[%emt 0:03:28]} Bxf6 {[%emt 0:00:19]} 7. c3 {[%emt 0:01:45]} b6 {[%emt 0:00:18]} 8. Qf3 {[%emt 0:02:11]} c6 {[%emt 0:03:15]} 9. Bd3 {[%emt 0:08:54]} Bb7 {[%emt 0:02:20]} 10. Ne2 {[%emt 0:02:02]} Qe7 {[%emt 0:00:56]} 11. N2g3 {[%emt 0:06:49]} Nd7 {[%emt 0:01:51]} 12. Nh5 {[%emt 0:04:39]} c5 {[%emt 0:01:10]} 13. Nexf6+ {[%emt 0:02:11]} Nxf6 {[%emt 0:00:09]} 14. Nxf6+ {[%emt 0:01:06]} gxf6 {[%emt 0:00:12]} 15. Bb5+ {[%emt 0:01:08]} Kf8 {[%emt 0:01:10]} 16. Bc6 {[%emt 0:06:06]} Rb8 {[%emt 0:01:18]} 17. dxc5 {[%emt 0:01:05]} Bxc6 {[%emt 0:01:06]} 18. Qxc6 {[%emt 0:00:14]} Qxc5 {[%emt 0:00:17]} 19. Qxc5+ {[%emt 0:00:24]} bxc5 {[%emt 0:00:02]} 20. O-O-O {[%emt 0:00:07]} Ke7 {[%emt 0:00:14]} 21. Rd3 {[%emt 0:01:22]} Rhg8 {[%emt 0:02:10]} 22. Rg3 {[%emt 0:01:10]} Rg5 {[%emt 0:01:29]} 23. Rd1 {[%emt 0:02:32]} Rd8 {[%emt 0:00:27]} 24. Rxd8 {[%emt 0:02:43]} Kxd8 {[%emt 0:00:02]} 25. Kc2 {[%emt 0:01:04]} Ke7 {[%emt 0:03:45]} 26. Rxg5 {[%emt 0:03:17]} fxg5 {[%emt 0:00:15]} 27. Kd3 {[%emt 0:00:05]} Kd6 {[%emt 0:00:16]} 28. Kc4 {[%emt 0:01:06]} Kc6 {[%emt 0:01:12]} 29. b4 {[%emt 0:01:15]} cxb4 {[%emt 0:00:44]} 30. cxb4 {[%emt 0:00:11]} f5 {[%emt 0:00:06]} 31. a4 {[%emt 0:01:41]} e5 {[%emt 0:01:29]} 32. b5+ {[%emt 0:00:23]} Kd6 {[%emt 0:02:12]} 33. a5 {[%emt 0:04:16]} e4 {[%emt 0:02:09]} 34. Kd4 {[%emt 0:02:05]} h6 {[%emt 0:01:32]} 35. g3 {[%emt 0:11:41]} h5 {[%emt 0:06:17]} 36. b6 {[%emt 0:01:24]} axb6 {[%emt 0:00:14]} 37. axb6 {[%emt 0:00:05]} h4 {[%emt 0:18:06]} 38. b7 {[%emt 0:02:15]} Kc7 {[%emt 0:00:24]} 39. gxh4 {[%emt 0:03:06]} gxh4 {[%emt 0:01:42]} 40. Ke5 {[%emt 0:00:07]} Kxb7 {[%emt 0:00:36]} 41. Kxf5 {[%emt 0:00:02]} e3 {[%emt 0:00:41]} 42. fxe3 {[%emt 0:00:05]} Kc7 {[%emt 0:00:18]} 43. Kg4 {[%emt 0:00:24]} Kd6 {[%emt 0:00:10]} 44. Kxh4 {[%emt 0:00:05]} Ke5 {[%emt 0:00:11]} 45. Kg5 {[%emt 0:00:07]} 1-0

[Event "33rd Croatian Junior League 2024"]
[Site "Novalja"]
[Date "2024.04.02"]
[Round "2.4"]
[White "Simunkovic, Bartol"]
[Black "Matosin, Jurica"]
[Result "*"]
[ECO "C13"]
[WhiteElo "1885"]
[BlackElo "1928"]
[Annotator "RC"]
[PlyCount "65"]
[EventDate "2024.03.28"]
[EventType "team-tourn"]
[EventCountry "CRO"]
[SourceTitle "playchess.com"]
[Source "ChessBase"]
[SourceQuality "1"]
[TimeControl "5400+30"]

1. e4 {[%emt 0:00:06]} e6 {[%emt 0:00:07]} 2. d4 {[%emt 0:00:04]} d5 {[%emt 0:00:04]} 3. Nc3 {[%emt 0:00:04]} Nf6 {[%emt 0:00:03]} 4. Bg5 {[%emt 0:00:07]} dxe4 {[%emt 0:00:04]} 5. Nxe4 {[%emt 0:00:07]} Be7 {[%emt 0:00:02]} 6. Bxf6 {[%emt 0:03:28]} Bxf6 {[%emt 0:00:19]} 7. c3 {[%emt 1:30:04]} b6 {[%emt 0:00:18]} 8. Qf3 {[%emt 0:02:11]} c6 {[%emt 0:03:15]} 9. Bd3 {[%emt 0:08:54]} Bb7 {[%emt 0:02:20]} 10. Ne2 {[%emt 0:02:02]} Qe7 {[%emt 0:00:56]} 11. N2g3 {[%emt 0:06:49]} Nd7 {[%emt 0:01:51]} 12. Nh5 {[%emt 0:04:39]} c5 {[%emt 0:01:10]} 13. Nexf6+ {[%emt 0:02:11]} Nxf6 {[%emt 0:00:09]} 14. Nxf6+ {[%emt 1:05:03]} gxf6 {[%emt 0:00:12]} 15. Bb5+ {[%emt 0:01:08]} Kf8 {[%emt 0:01:10]} 16. Bc6 {[%emt 0:06:06]} Rb8 {[%emt 0:01:18]} 17. dxc5 {[%emt 0:01:05]} Bxc6 {[%emt 0:01:06]} 18. Qxc6 {[%emt 0:00:14]} Qxc5 {[%emt 0:00:17]} 19. Qxc5+ {[%emt 0:00:24]} bxc5 {[%emt 0:00:02]} 20. O-O-O {[%emt 0:00:07]} Ke7 {[%emt 0:00:14]} 21. Rd3 {[%emt 0:01:22]} Rhg8 {[%emt 0:02:10]} 22. Rg3 {[%emt 0:01:10]} Rg5 {[%emt 0:01:29]} 23. Rd1 {[%emt 0:02:32]} Rd8 {[%emt 0:00:27]} 24. Rxd8 {[%emt 0:02:43]} Kxd8 {[%emt 0:00:02]} 25. Kc2 {[%emt 0:01:04]} Ke7 {[%emt 1:23:55]} 26. Rxg5 {[%emt 0:03:17]} fxg5 {[%emt 0:00:15]} 27. Kd3 {[%emt 0:00:05]} Kd6 {[%emt 0:00:16]} 28. Kc4 {[%emt 0:01:06]} Kc6 {[%emt 0:01:12]} 29. b4 {[%emt 0:01:15]} cxb4 {[%emt 0:00:44]} 30. cxb4 {[%emt 0:00:11]} f5 {[%emt 0:00:06]} 31. a4 {[%emt 0:48:38]} e5 {[%emt 0:01:29]} 32. b5+ {[%emt 0:47:27]} Kd6 {[%emt 0:02:12]} 33. a5 {[%emt 0:04:16]} *

[Event "33rd Croatian Junior League 2024"]
[Site "Novalja"]
[Date "2024.04.02"]
[Round "2.5"]
[White "Kovac, Petar"]
[Black "Vucenovic, Damian"]
[Result "1/2-1/2"]
[ECO "E06"]
[WhiteElo "2173"]
[BlackElo "2145"]
[Annotator "RC"]
[PlyCount "105"]
[EventDate "2024.03.28"]
[EventType "team-tourn"]
[EventCountry "CRO"]
[SourceTitle "playchess.com"]
[Source "ChessBase"]
[SourceQuality "1"]
[TimeControl "5400+30"]

1. d4 {[%emt 0:00:02]} d5 {[%emt 0:00:36]} 2. c4 {[%emt 0:00:08]} e6 {[%emt 0:00:13]} 3. Nf3 {[%emt 0:00:12]} Nf6 {[%emt 0:00:21]} 4. g3 {[%emt 0:00:12]} Be7 {[%emt 0:00:33]} 5. Bg2 {[%emt 0:00:09]} O-O {[%emt 0:00:18]} 6. O-O {[%emt 0:00:13]} c6 {[%emt 0:00:24]} 7. Nc3 {[%emt 0:00:14]} b6 {[%emt 0:01:07]} 8. Ne5 {[%emt 0:01:24]} Bb7 {[%emt 0:04:06]} 9. e4 {[%emt 0:01:50]} dxc4 {[%emt 0:04:56]} 10. Nxc4 {[%emt 0:01:06]} Ba6 {[%emt 0:05:24]} 11. b3 {[%emt 0:01:35]} b5 {[%emt 0:04:18]} 12. Ne3 {[%emt 0:00:30]} b4 {[%emt 0:02:57]} 13. Ne2 {[%emt 0:00:06]} Bxe2 {[%emt 0:03:02]} 14. Qxe2 {[%emt 0:00:04]} Qxd4 {[%emt 0:01:01]} 15. Bb2 {[%emt 0:00:05]} Qb6 {[%emt 0:03:19]} 16. Rac1 {[%emt 0:16:28]} Nbd7 {[%emt 0:09:06]} 17. Rc2 {[%emt 0:14:54]} Rac8 {[%emt 0:09:10]} 18. Rfc1 {[%emt 0:03:57]} c5 {[%emt 0:06:33]} 19. e5 {[%emt 0:10:36]} Ne8 {[%emt 0:00:46]} 20. Be4 {[%emt 0:02:22]} Qc7 {[%emt 0:12:52]} 21. f4 {[%emt 0:15:39]} g6 {[%emt 0:05:35]} 22. Rf1 {[%emt 0:10:38]} Ng7 {[%emt 0:04:07]} 23. g4 {[%emt 0:02:55]} f6 {[%emt 0:04:35]} 24. exf6 {[%emt 0:02:49]} Bxf6 {[%emt 0:00:58]} 25. Bxf6 {[%emt 0:01:02]} Rxf6 {[%emt 0:02:31]} 26. Ng2 {[%emt 0:01:09]} Nb6 {[%emt 0:01:33]} 27. Rd1 {[%emt 0:05:38]} Rff8 {[%emt 0:03:56]} 28. Qe3 {[%emt 0:01:23]} Qe7 {[%emt 0:02:57]} 29. Rdc1 {[%emt 0:01:22]} Nd7 {[%emt 0:01:19]} 30. Re1 {[%emt 0:02:49]} Qf6 {[%emt 0:02:20]} 31. Rd1 {[%emt 0:00:25]} Rc7 {[%emt 0:01:39]} 32. Rcd2 {[%emt 0:00:39]} Nb6 {[%emt 0:00:21]} 33. Rc2 {[%emt 0:01:12]} c4 {[%emt 0:01:24]} 34. bxc4 {[%emt 0:00:11]} Rxc4 {[%emt 0:00:05]} 35. Rxc4 {[%emt 0:00:14]} Nxc4 {[%emt 0:00:03]} 36. Qxa7 {[%emt 0:00:17]} Rd8 {[%emt 0:00:34]} 37. Rxd8+ {[%emt 0:00:42]} Qxd8 {[%emt 0:00:04]} 38. Qa8 {[%emt 0:00:09]} Qxa8 {[%emt 0:00:20]} 39. Bxa8 {[%emt 0:00:04]} Ne8 {[%emt 0:01:09]} 40. Kf2 {[%emt 0:01:22]} Nc7 {[%emt 0:00:48]} 41. Bc6 {[%emt 0:01:42]} Kf7 {[%emt 0:01:12]} 42. Ne3 {[%emt 0:00:55]} Nxe3 {[%emt 0:00:31]} 43. Kxe3 {[%emt 0:00:04]} Ke7 {[%emt 0:00:08]} 44. Kd4 {[%emt 0:00:34]} Kd6 {[%emt 0:00:06]} 45. Bf3 {[%emt 0:00:27]} Nb5+ {[%emt 0:01:55]} 46. Kc4 {[%emt 0:00:08]} Nc3 {[%emt 0:01:23]} 47. a3 {[%emt 0:00:44]} Nd5 {[%emt 0:00:26]} 48. axb4 {[%emt 0:01:31]} Nxf4 {[%emt 0:00:07]} 49. b5 {[%emt 0:01:02]} h5 {[%emt 0:00:20]} 50. gxh5 {[%emt 0:00:16]} gxh5 {[%emt 0:00:08]} 51. b6 {[%emt 0:00:42]} e5 {[%emt 0:01:05]} 52. Kb5 {[%emt 0:00:41]} h4 {[%emt 0:00:41]} 53. b7 {[%emt 0:00:35]} 1/2-1/2

[Event "33rd Croatian Junior League 2024"]
[Site "Novalja"]
[Date "2024.04.02"]
[Round "2.6"]
[White "Dumancic, Simun"]
[Black "Konjevic, Nikola"]
[Result "1/2-1/2"]
[ECO "C92"]
[WhiteElo "2027"]
[BlackElo "2056"]
[Annotator "RC"]
[PlyCount "107"]
[EventDate "2024.03.28"]
[EventType "team-tourn"]
[EventCountry "CRO"]
[SourceTitle "playchess.com"]
[Source "ChessBase"]
[SourceQuality "1"]
[TimeControl "5400+30"]

1. e4 {[%emt 0:00:43]} e5 {[%emt 0:00:05]} 2. Nf3 {[%emt 0:00:25]} Nc6 {[%emt 0:00:13]} 3. Bb5 {[%emt 0:00:10]} a6 {[%emt 0:00:19]} 4. Ba4 {[%emt 0:00:22]} Nf6 {[%emt 0:00:20]} 5. O-O {[%emt 0:00:28]} Be7 {[%emt 0:00:09]} 6. Re1 {[%emt 0:00:18]} b5 {[%emt 0:00:14]} 7. Bb3 {[%emt 0:00:36]} d6 {[%emt 0:01:45]} 8. c3 {[%emt 0:02:32]} O-O {[%emt 0:00:25]} 9. h3 {[%emt 0:00:34]} Bb7 {[%emt 0:00:24]} 10. d4 {[%emt 0:02:54]} Re8 {[%emt 0:00:18]} 11. dxe5 {[%emt 0:17:59]} dxe5 {[%emt 0:08:23]} 12. Bxf7+ {[%emt 0:05:18]} Kxf7 {[%emt 0:00:19]} 13. Qb3+ {[%emt 0:00:10]} Nd5 {[%emt 0:02:36]} 14. exd5 {[%emt 0:04:14]} Na5 {[%emt 0:00:12]} 15. Qc2 {[%emt 0:13:33]} Kg8 {[%emt 0:00:15]} 16. Rxe5 {[%emt 0:00:51]} Bf6 {[%emt 0:07:11]} 17. Rxe8+ {[%emt 0:03:57]} Qxe8 {[%emt 0:00:03]} 18. Bf4 {[%emt 0:02:01]} Bxd5 {[%emt 0:06:58]} 19. Nbd2 {[%emt 0:00:32]} Qf7 {[%emt 0:14:39]} 20. Ne4 {[%emt 0:08:42]} Bxe4 {[%emt 0:03:36]} 21. Qxe4 {[%emt 0:00:09]} Re8 {[%emt 0:00:02]} 22. Qc2 {[%emt 0:03:16]} Nc4 {[%emt 0:53:04]} 23. Bg5 {[%emt 0:03:54]} Ne5 {[%emt 0:00:00]} 24. Nxe5 {[%emt 0:02:24]} Bxe5 {[%emt 0:00:00]} 25. a4 {[%emt 0:05:45]} Bd6 {[%emt 0:00:00]} 26. Be3 {[%emt 0:03:08]} Qe6 {[%emt 0:00:00]} 27. axb5 {[%emt 0:02:53]} axb5 {[%emt 0:00:00]} 28. Ra5 {[%emt 0:01:38]} c6 {[%emt 0:00:00]} 29. Qb1 {[%emt 0:05:10]} b4 {[%emt 0:00:00]} 30. cxb4 {[%emt 0:02:43]} Bxb4 {[%emt 0:00:00]} 31. Ra7 {[%emt 0:01:07]} Bd6 {[%emt 0:00:00]} 32. Qa1 {[%emt 0:03:56]} h6 {[%emt 0:00:00]} 33. Ra8 {[%emt 0:02:00]} Rxa8 {[%emt 0:01:21]} 34. Qxa8+ {[%emt 0:00:01]} Kh7 {[%emt 0:00:01]} 35. Qa6 {[%emt 0:00:50]} Qb3 {[%emt 0:01:42]} 36. g4 {[%emt 0:01:52]} Qd1+ {[%emt 0:01:29]} 37. Qf1 {[%emt 0:00:26]} Qc2 {[%emt 0:01:03]} 38. Qc1 {[%emt 0:00:32]} Qe4 {[%emt 0:00:27]} 39. Qd2 {[%emt 0:00:25]} Be5 {[%emt 0:00:21]} 40. b4 {[%emt 0:01:22]} Bf6 {[%emt 0:01:30]} 41. Bc5 {[%emt 0:00:18]} Kh8 {[%emt 0:00:39]} 42. Qe3 {[%emt 0:00:10]} Qd5 {[%emt 0:00:35]} 43. Qe8+ {[%emt 0:00:44]} Kh7 {[%emt 0:00:02]} 44. Qe2 {[%emt 0:00:14]} Kh8 {[%emt 0:00:34]} 45. Qe3 {[%emt 0:00:44]} Qd1+ {[%emt 0:00:54]} 46. Kh2 {[%emt 0:00:24]} Qd5 {[%emt 0:00:25]} 47. f4 {[%emt 0:00:55]} Bh4 {[%emt 0:00:35]} 48. Bd4 {[%emt 0:00:36]} Qa2+ {[%emt 0:00:23]} 49. Kh1 {[%emt 0:00:11]} Qb1+ {[%emt 0:00:12]} 50. Kg2 {[%emt 0:00:30]} Qc2+ {[%emt 0:00:31]} 51. Kf3 {[%emt 0:00:37]} Qd1+ {[%emt 0:00:19]} 52. Kg2 {[%emt 0:00:10]} Qc2+ {[%emt 0:00:21]} 53. Kf3 {[%emt 0:00:21]} Qd1+ {[%emt 0:00:11]} 54. Kg2 {[%emt 0:00:40]} 1/2-1/2

[Event "33rd Croatian Junior League 2024"]
[Site "Novalja"]
[Date "2024.04.02"]
[Round "2.7"]
[White "Car, Filip"]
[Black "Sagovac, Kristijan"]
[Result "1/2-1/2"]
[ECO "E08"]
[WhiteElo "2106"]
[BlackElo "2030"]
[Annotator "RC"]
[PlyCount "160"]
[EventDate "2024.03.28"]
[EventType "team-tourn"]
[EventCountry "CRO"]
[SourceTitle "playchess.com"]
[Source "ChessBase"]
[SourceQuality "1"]
[TimeControl "5400+30"]

1. d4 {[%emt 0:00:04]} Nf6 {[%emt 0:00:24]} 2. c4 {[%emt 0:00:08]} e6 {[%emt 0:00:16]} 3. g3 {[%emt 0:00:23]} Bb4+ {[%emt 0:00:30]} 4. Bd2 {[%emt 0:00:15]} Be7 {[%emt 0:00:06]} 5. Bg2 {[%emt 0:00:33]} d5 {[%emt 0:00:07]} 6. Nf3 {[%emt 0:00:36]} O-O {[%emt 0:00:28]} 7. O-O {[%emt 0:00:23]} c6 {[%emt 0:00:13]} 8. Qc2 {[%emt 0:00:39]} Nbd7 {[%emt 0:01:00]} 9. Bf4 {[%emt 0:01:09]} b6 {[%emt 0:00:29]} 10. cxd5 {[%emt 0:00:48]} cxd5 {[%emt 0:00:12]} 11. Rc1 {[%emt 0:01:06]} Ba6 {[%emt 0:03:03]} 12. Nc3 {[%emt 0:02:02]} b5 {[%emt 0:11:16]} 13. a4 {[%emt 0:10:20]} b4 {[%emt 0:04:09]} 14. Nb5 {[%emt 0:00:11]} Bxb5 {[%emt 0:05:29]} 15. axb5 {[%emt 0:04:13]} Qb6 {[%emt 0:04:09]} 16. Qa4 {[%emt 0:14:56]} Rfc8 {[%emt 0:20:06]} 17. Rc6 {[%emt 0:00:54]} Qd8 {[%emt 0:01:12]} 18. Rac1 {[%emt 0:09:23]} Nb6 {[%emt 0:03:27]} 19. Qa6 {[%emt 0:02:21]} Ne8 {[%emt 0:03:19]} 20. Ne5 {[%emt 0:06:11]} Nd6 {[%emt 0:20:46]} 21. b3 {[%emt 0:13:22]} Bf6 {[%emt 0:08:18]} 22. Rxc8 {[%emt 0:09:04]} Nbxc8 {[%emt 0:04:17]} 23. Nc6 {[%emt 0:16:05]} Qb6 {[%emt 0:01:13]} 24. e3 {[%emt 0:00:25]} Qxb5 {[%emt 0:04:13]} 25. Qxb5 {[%emt 0:00:16]} Nxb5 {[%emt 0:00:02]} 26. Bf1 {[%emt 0:00:40]} Nbd6 {[%emt 0:01:54]} 27. Nxb4 {[%emt 0:00:02]} g5 {[%emt 0:01:13]} 28. Bxd6 {[%emt 0:00:45]} Nxd6 {[%emt 0:00:01]} 29. Rc6 {[%emt 0:02:09]} Ne4 {[%emt 0:02:36]} 30. Na6 {[%emt 0:00:29]} Nd2 {[%emt 0:00:28]} 31. b4 {[%emt 0:00:52]} Nxf1 {[%emt 0:00:28]} 32. Kxf1 {[%emt 0:00:02]} Bd8 {[%emt 0:00:31]} 33. h3 {[%emt 0:00:50]} Kf8 {[%emt 0:00:24]} 34. Ke2 {[%emt 0:01:16]} Ke7 {[%emt 0:00:24]} 35. Nc5 {[%emt 0:01:26]} Rb8 {[%emt 0:00:41]} 36. Ra6 {[%emt 0:00:33]} Bb6 {[%emt 0:00:31]} 37. Na4 {[%emt 0:01:21]} h6 {[%emt 0:00:32]} 38. Kd3 {[%emt 0:01:06]} Rb7 {[%emt 0:00:31]} 39. Nxb6 {[%emt 0:00:32]} axb6 {[%emt 0:00:07]} 40. b5 {[%emt 0:00:20]} Kf6 {[%emt 0:00:51]} 41. Ra8 {[%emt 0:00:11]} Kf5 {[%emt 0:00:30]} 42. Ke2 {[%emt 0:00:46]} Kg6 {[%emt 0:00:14]} 43. Kf3 {[%emt 0:00:16]} f5 {[%emt 0:00:42]} 44. Rg8+ {[%emt 0:00:22]} Kf7 {[%emt 0:00:19]} 45. Rh8 {[%emt 0:00:02]} Kg7 {[%emt 0:00:06]} 46. Rc8 {[%emt 0:00:07]} Kf6 {[%emt 0:00:30]} 47. Rc6 {[%emt 0:00:23]} Rb8 {[%emt 0:00:35]} 48. g4 {[%emt 0:01:08]} Rb7 {[%emt 0:00:54]} 49. Kg3 {[%emt 0:00:05]} Rb8 {[%emt 0:00:20]} 50. Rd6 {[%emt 0:00:07]} Ke7 {[%emt 0:00:21]} 51. Rc6 {[%emt 0:00:01]} Kf6 {[%emt 0:00:00]} 52. Rc7 {[%emt 0:01:06]} Kg6 {[%emt 0:00:26]} 53. Rc6 {[%emt 0:02:02]} Kf6 {[%emt 0:00:25]} 54. h4 {[%emt 0:00:05]} gxh4+ {[%emt 0:01:21]} 55. Kxh4 {[%emt 0:00:08]} Rb7 {[%emt 0:00:33]} 56. gxf5 {[%emt 0:01:09]} Kxf5 {[%emt 0:00:07]} 57. Kh5 {[%emt 0:00:22]} e5 {[%emt 0:01:06]} 58. dxe5 {[%emt 0:01:11]} Kxe5 {[%emt 0:00:02]} 59. Kxh6 {[%emt 0:00:02]} Ke4 {[%emt 0:01:02]} 60. Rf6 {[%emt 0:01:09]} Kd3 {[%emt 0:00:16]} 61. Rf4 {[%emt 0:00:31]} Rd7 {[%emt 0:01:15]} 62. Kg6 {[%emt 0:00:21]} Rc7 {[%emt 0:00:00]} 63. Rd4+ {[%emt 0:00:50]} Ke2 {[%emt 0:00:00]} 64. Rxd5 {[%emt 0:00:11]} Kxf2 {[%emt 0:00:00]} 65. e4 {[%emt 0:00:10]} Ke3 {[%emt 0:00:07]} 66. Re5 {[%emt 0:00:49]} Kd4 {[%emt 0:00:14]} 67. Re6 {[%emt 0:00:03]} Rc5 {[%emt 0:00:37]} 68. Kf6 {[%emt 0:00:54]} Rxb5 {[%emt 0:00:04]} 69. e5 {[%emt 0:00:11]} Rb1 {[%emt 0:00:32]} 70. Rd6+ {[%emt 0:00:11]} Kc5 {[%emt 0:00:22]} 71. Rd2 {[%emt 0:00:19]} Re1 {[%emt 0:00:52]} 72. e6 {[%emt 0:00:11]} b5 {[%emt 0:00:15]} 73. e7 {[%emt 0:01:51]} b4 {[%emt 0:00:35]} 74. Rc2+ {[%emt 0:00:54]} Kd4 {[%emt 0:00:39]} 75. Rc6 {[%emt 0:00:16]} Rxe7 {[%emt 0:00:45]} 76. Kxe7 {[%emt 0:00:07]} b3 {[%emt 0:00:02]} 77. Kd6 {[%emt 0:00:28]} b2 {[%emt 0:00:05]} 78. Rb6 {[%emt 0:00:05]} Kc3 {[%emt 0:00:02]} 79. Kc5 {[%emt 0:00:09]} Kc2 {[%emt 0:00:05]} 80. Rxb2+ {[%emt 0:00:10]} Kxb2 {[%emt 0:00:06]} 1/2-1/2

[Event "33rd Croatian Junior League 2024"]
[Site "Novalja"]
[Date "2024.04.02"]
[Round "2.8"]
[White "Martic, Filip"]
[Black "Mandaric, Fran"]
[Result "1/2-1/2"]
[ECO "E11"]
[WhiteElo "1897"]
[BlackElo "1933"]
[Annotator "RC"]
[PlyCount "83"]
[EventDate "2024.03.28"]
[EventType "team-tourn"]
[EventCountry "CRO"]
[SourceTitle "playchess.com"]
[Source "ChessBase"]
[SourceQuality "1"]
[TimeControl "5400+30"]

1. d4 {[%emt 0:00:07]} Nf6 {[%emt 0:00:06]} 2. Nf3 {[%emt 0:00:05]} e6 {[%emt 0:00:06]} 3. c4 {[%emt 0:00:09]} Bb4+ {[%emt 0:00:05]} 4. Bd2 {[%emt 0:00:10]} Qe7 {[%emt 0:00:12]} 5. g3 {[%emt 0:01:16]} O-O {[%emt 0:00:58]} 6. Bg2 {[%emt 0:00:20]} a5 {[%emt 0:00:41]} 7. O-O {[%emt 0:00:16]} Bxd2 {[%emt 0:01:34]} 8. Nbxd2 {[%emt 0:00:09]} d6 {[%emt 0:00:36]} 9. Qc2 {[%emt 0:00:42]} Nbd7 {[%emt 0:12:36]} 10. e4 {[%emt 0:12:16]} e5 {[%emt 0:00:31]} 11. d5 {[%emt 0:01:20]} Nc5 {[%emt 0:02:31]} 12. Ne1 {[%emt 0:03:23]} b6 {[%emt 0:05:55]} 13. Nd3 {[%emt 0:00:21]} Nxd3 {[%emt 0:08:49]} 14. Qxd3 {[%emt 0:00:03]} Nd7 {[%emt 0:00:08]} 15. Rae1 {[%emt 0:01:59]} Nc5 {[%emt 0:01:02]} 16. Qc3 {[%emt 0:01:35]} Bd7 {[%emt 0:08:41]} 17. Nb3 {[%emt 0:02:10]} Na6 {[%emt 0:00:28]} 18. f4 {[%emt 0:08:13]} f6 {[%emt 0:02:14]} 19. a3 {[%emt 0:11:31]} Rfb8 {[%emt 0:15:56]} 20. f5 {[%emt 0:05:36]} a4 {[%emt 0:05:46]} 21. Nd2 {[%emt 0:00:20]} Nc5 {[%emt 0:01:06]} 22. Rf2 {[%emt 0:10:06]} b5 {[%emt 0:04:41]} 23. Bf1 {[%emt 0:00:45]} bxc4 {[%emt 0:03:25]} 24. Bxc4 {[%emt 0:00:09]} Bb5 {[%emt 0:00:40]} 25. Re3 {[%emt 0:04:51]} Bxc4 {[%emt 0:11:11]} 26. Nxc4 {[%emt 0:00:08]} Rb3 {[%emt 0:00:22]} 27. Qd2 {[%emt 0:00:17]} Rxe3 {[%emt 0:00:57]} 28. Qxe3 {[%emt 0:00:02]} Qd7 {[%emt 0:00:18]} 29. Rc2 {[%emt 0:02:04]} Qb5 {[%emt 0:01:19]} 30. Rc3 {[%emt 0:00:43]} Rb8 {[%emt 0:02:40]} 31. g4 {[%emt 0:01:12]} Qa6 {[%emt 0:03:02]} 32. Kg2 {[%emt 0:02:18]} Kf7 {[%emt 0:03:47]} 33. Kf3 {[%emt 0:00:15]} Nb3 {[%emt 0:01:15]} 34. h4 {[%emt 0:02:45]} Nd4+ {[%emt 0:01:59]} 35. Kf2 {[%emt 0:00:06]} Rb5 {[%emt 0:01:07]} 36. g5 {[%emt 0:01:56]} Rc5 {[%emt 0:00:57]} 37. Nd2 {[%emt 0:02:16]} Nc2 {[%emt 0:00:44]} 38. g6+ {[%emt 0:01:12]} Kg8 {[%emt 0:00:28]} 39. gxh7+ {[%emt 0:00:07]} Kxh7 {[%emt 0:00:11]} 40. Qf3 {[%emt 0:00:44]} Rxc3 {[%emt 0:00:48]} 41. Qh5+ {[%emt 0:01:01]} Kg8 {[%emt 0:00:03]} 42. Qe8+ {[%emt 0:00:05]} 1/2-1/2